[Event "FIDE World Senior-Women CC 2023"]
[Site "Terrasini"]
[Date "2023.10.30"]
[Round "6.3"]
[White "Mikhaylova, Irina"]
[Black "Krasenkowa, Elena"]
[Result "1/2-1/2"]
[ECO "A30"]
[WhiteElo "2216"]
[BlackElo "2089"]
[Annotator "RC"]
[PlyCount "124"]
[EventDate "2023.10.22"]
[EventType "swiss"]
[EventCountry "ITA"]
[SourceTitle "playchess.com"]
[Source "ChessBase"]
[SourceQuality "1"]
[TimeControl "40/5400+30:1800+30"]

1. c4 {[%emt 0:00:03]} Nf6 {[%emt 0:00:07]} 2. Nf3 {[%emt 0:01:44]} e6 {[%emt 0:00:15]} 3. g3 {[%emt 0:08:32]} b6 {[%emt 0:02:29]} 4. Bg2 {[%emt 0:00:12]} Bb7 {[%emt 0:00:03]} 5. O-O {[%emt 0:01:22]} c5 {[%emt 0:00:40]} 6. b3 {[%emt 0:00:33]} g6 {[%emt 0:00:32]} 7. Bb2 {[%emt 0:00:49]} Bg7 {[%emt 0:00:07]} 8. d4 {[%emt 0:06:43]} cxd4 {[%emt 0:00:12]} 9. Qxd4 {[%emt 0:01:39]} O-O {[%emt 0:00:40]} 10. Rd1 {[%emt 0:06:43]} Qc7 {[%emt 0:08:19]} 11. Qh4 {[%emt 0:06:47]} Ne4 {[%emt 0:12:35]} 12. Bxg7 {[%emt 0:02:29]} Kxg7 {[%emt 0:00:04]} 13. Nc3 {[%emt 0:16:34]} Nxc3 {[%emt 0:01:04]} 14. Qd4+ {[%emt 0:00:07]} f6 {[%emt 0:00:03]} 15. Qxc3 {[%emt 0:00:05]} Nc6 {[%emt 0:03:46]} 16. Rd3 {[%emt 0:01:37]} Rae8 {[%emt 0:04:05]} 17. Rad1 {[%emt 0:00:25]} Re7 {[%emt 0:00:07]} 18. Qd2 {[%emt 0:10:33]} Rff7 {[%emt 0:00:32]} 19. Nd4 {[%emt 0:01:59]} Nxd4 {[%emt 0:00:36]} 20. Rxd4 {[%emt 0:00:10]} Bxg2 {[%emt 0:03:41]} 21. Kxg2 {[%emt 0:00:02]} Qb7+ {[%emt 0:00:25]} 22. Kg1 {[%emt 0:00:50]} Qc7 {[%emt 0:00:05]} 23. Qb4 {[%emt 0:02:16]} e5 {[%emt 0:04:05]} 24. Rd5 {[%emt 0:00:46]} Re6 {[%emt 0:04:21]} 25. a4 {[%emt 0:01:46]} h5 {[%emt 0:01:14]} 26. a5 {[%emt 0:00:26]} h4 {[%emt 0:02:17]} 27. Qd2 {[%emt 0:04:50]} hxg3 {[%emt 0:00:47]} 28. hxg3 {[%emt 0:00:08]} Ree7 {[%emt 0:00:10]} 29. Kg2 {[%emt 0:02:03]} Qc6 {[%emt 0:00:24]} 30. Rh1 {[%emt 0:00:38]} g5 {[%emt 0:00:46]} 31. e4 {[%emt 0:00:18]} Kg8 {[%emt 0:02:11]} 32. axb6 {[%emt 0:02:35]} Qxb6 {[%emt 0:01:14]} 33. Rb5 {[%emt 0:00:56]} Qc7 {[%emt 0:07:31]} 34. Qd5 {[%emt 0:05:28]} Qc8 {[%emt 0:11:16]} 35. Rb7 {[%emt 0:01:59]} a6 {[%emt 0:01:23]} 36. Ra7 {[%emt 0:00:53]} Qc6 {[%emt 0:01:47]} 37. Ra8+ {[%emt 0:03:44]} Kg7 {[%emt 0:00:03]} 38. Rhh8 {[%emt 0:00:24]} Kg6 {[%emt 0:01:26]} 39. Rhg8+ {[%emt 0:03:35]} Rg7 {[%emt 0:00:05]} 40. Rxg7+ {[%emt 0:02:39]} Rxg7 {[%emt 0:00:04]} 41. Qxc6 {[%emt 0:31:24]} dxc6 {[%emt 0:30:04]} 42. Rxa6 {[%emt 0:00:05]} Rb7 {[%emt 0:00:18]} 43. Ra3 {[%emt 0:00:15]} g4 {[%emt 0:00:11]} 44. Kf1 {[%emt 0:00:23]} Kf7 {[%emt 0:00:30]} 45. Ke2 {[%emt 0:00:05]} c5 {[%emt 0:00:32]} 46. f3 {[%emt 0:01:25]} gxf3+ {[%emt 0:00:12]} 47. Kxf3 {[%emt 0:00:02]} Rd7 {[%emt 0:01:12]} 48. Ke3 {[%emt 0:00:07]} Rb7 {[%emt 0:00:46]} 49. Kf3 {[%emt 0:00:41]} Kg6 {[%emt 0:00:45]} 50. Kg4 {[%emt 0:01:03]} Rb6 {[%emt 0:00:18]} 51. Kh4 {[%emt 0:00:48]} Rb8 {[%emt 0:00:10]} 52. Kg4 {[%emt 0:00:17]} Rb7 {[%emt 0:00:07]} 53. Kf3 {[%emt 0:00:04]} Rb6 {[%emt 0:00:08]} 54. Ke3 {[%emt 0:00:05]} Kg5 {[%emt 0:00:07]} 55. Kf3 {[%emt 0:00:21]} Kg6 {[%emt 0:00:11]} 56. Kg4 {[%emt 0:00:14]} Rb8 {[%emt 0:00:04]} 57. Ra5 {[%emt 0:00:33]} Rxb3 {[%emt 0:00:12]} 58. Rxc5 {[%emt 0:00:01]} Re3 {[%emt 0:00:10]} 59. Rc8 {[%emt 0:00:05]} Rxe4+ {[%emt 0:00:06]} 60. Kf3 {[%emt 0:00:05]} Rd4 {[%emt 0:00:05]} 61. c5 {[%emt 0:00:09]} Kf7 {[%emt 0:09:12]} 62. c6 {[%emt 0:00:09]} Kg6 {[%emt 0:24:39]} 1/2-1/2

[Event "FIDE World Senior-Women CC 2023"]
[Site "Terrasini"]
[Date "2023.10.30"]
[Round "6.4"]
[White "Bogumil, Tatiana"]
[Black "Tereladze, Sopio"]
[Result "0-1"]
[ECO "A06"]
[WhiteElo "2080"]
[BlackElo "2215"]
[Annotator "RC"]
[PlyCount "120"]
[EventDate "2023.10.22"]
[EventType "swiss"]
[EventCountry "ITA"]
[SourceTitle "playchess.com"]
[Source "ChessBase"]
[SourceQuality "1"]
[TimeControl "40/5400+30:1800+30"]

1. Nf3 {[%emt 0:00:56]} d5 {[%emt 0:00:23]} 2. b3 {[%emt 0:05:18]} Bg4 {[%emt 0:01:42]} 3. Ne5 {[%emt 0:03:29]} Bf5 {[%emt 0:01:06]} 4. d4 {[%emt 0:04:17]} f6 {[%emt 0:01:29]} 5. Nd3 {[%emt 0:02:38]} Nd7 {[%emt 0:04:18]} 6. Bb2 {[%emt 0:04:23]} e6 {[%emt 0:06:25]} 7. e3 {[%emt 0:01:36]} Bd6 {[%emt 0:00:33]} 8. c4 {[%emt 0:03:39]} c6 {[%emt 0:03:14]} 9. Be2 {[%emt 0:04:41]} Nh6 {[%emt 0:01:10]} 10. Nc3 {[%emt 0:08:06]} O-O {[%emt 0:00:45]} 11. O-O {[%emt 0:11:19]} dxc4 {[%emt 0:03:12]} 12. bxc4 {[%emt 0:05:37]} e5 {[%emt 0:00:02]} 13. c5 {[%emt 0:09:33]} Bc7 {[%emt 0:02:51]} 14. Qb3+ {[%emt 0:01:04]} Kh8 {[%emt 0:00:33]} 15. e4 {[%emt 0:04:10]} exd4 {[%emt 0:03:01]} 16. exf5 {[%emt 0:01:29]} dxc3 {[%emt 0:00:03]} 17. Bxc3 {[%emt 0:00:14]} Qe7 {[%emt 0:09:11]} 18. Bf3 {[%emt 0:03:56]} Nxc5 {[%emt 0:04:08]} 19. Nxc5 {[%emt 0:01:32]} Qxc5 {[%emt 0:03:39]} 20. Qxb7 {[%emt 0:00:50]} Bxh2+ {[%emt 0:00:27]} 21. Kxh2 {[%emt 0:00:01]} Qxc3 {[%emt 0:00:08]} 22. Qxc6 {[%emt 0:01:15]} Qe5+ {[%emt 0:03:30]} 23. Kg1 {[%emt 0:00:44]} Rac8 {[%emt 0:50:10]} 24. Qe4 {[%emt 0:02:26]} Qxf5 {[%emt 0:00:00]} 25. Qxf5 {[%emt 0:01:40]} Nxf5 {[%emt 0:00:00]} 26. Bg4 {[%emt 0:00:25]} Rc5 {[%emt 0:00:00]} 27. Bxf5 {[%emt 0:00:11]} Rxf5 {[%emt 0:00:00]} 28. Rfd1 {[%emt 0:00:54]} h5 {[%emt 0:00:00]} 29. Rd7 {[%emt 0:02:46]} a5 {[%emt 0:00:00]} 30. Rad1 {[%emt 0:01:29]} Rb8 {[%emt 0:00:00]} 31. Rd8+ {[%emt 0:00:59]} Rxd8 {[%emt 0:00:00]} 32. Rxd8+ {[%emt 0:00:05]} Kh7 {[%emt 0:00:00]} 33. g3 {[%emt 0:00:14]} Rc5 {[%emt 0:00:00]} 34. Ra8 {[%emt 0:00:32]} Kh6 {[%emt 0:00:00]} 35. Kg2 {[%emt 0:00:25]} Kg5 {[%emt 0:00:00]} 36. Ra7 {[%emt 0:02:08]} g6 {[%emt 0:00:00]} 37. Ra6 {[%emt 0:02:31]} Rf5 {[%emt 0:00:00]} 38. Rc6 {[%emt 0:03:24]} h4 {[%emt 0:00:00]} 39. gxh4+ {[%emt 0:02:22]} Kxh4 {[%emt 0:00:00]} 40. Rc4+ {[%emt 0:00:06]} Kg5 {[%emt 0:00:00]} 41. Kg3 {[%emt 0:30:11]} Rd5 {[%emt 0:01:51]} 42. Kg2 {[%emt 0:05:03]} f5 {[%emt 0:00:37]} 43. Rc6 {[%emt 0:00:49]} Rd2 {[%emt 0:00:20]} 44. Kg3 {[%emt 0:00:00]} Rxa2 {[%emt 0:00:00]} 45. Kg2 {[%emt 0:00:00]} a4 {[%emt 0:00:00]} 46. Ra6 {[%emt 0:00:00]} Kh5 {[%emt 0:00:00]} 47. Rf6 {[%emt 0:00:00]} Rb2 {[%emt 0:00:00]} 48. Ra6 {[%emt 0:00:00]} Rb4 {[%emt 0:00:00]} 49. Kg3 {[%emt 0:00:00]} g5 {[%emt 0:00:00]} 50. Ra8 {[%emt 0:00:00]} Rb3+ {[%emt 0:00:00]} 51. Kg2 {[%emt 0:00:49]} a3 {[%emt 0:00:00]} 52. Ra4 {[%emt 0:01:42]} g4 {[%emt 0:00:00]} 53. Ra8 {[%emt 0:00:22]} Kg5 {[%emt 0:00:00]} 54. Ra4 {[%emt 0:00:54]} Kf6 {[%emt 0:00:00]} 55. Ra5 {[%emt 0:00:20]} Kg5 {[%emt 0:00:00]} 56. Ra4 {[%emt 0:00:21]} Rf3 {[%emt 0:00:00]} 57. Ra6 {[%emt 0:01:20]} Kf4 {[%emt 0:00:00]} 58. Re6 {[%emt 0:01:29]} g3 {[%emt 0:00:00]} 59. fxg3+ {[%emt 0:01:01]} Rxg3+ {[%emt 0:00:00]} 60. Kf2 {[%emt 0:01:45]} Rb3 {[%emt 0:00:00]} 0-1

[Event "FIDE World Senior-Women CC 2023"]
[Site "Terrasini"]
[Date "2023.10.30"]
[Round "6.5"]
[White "Gaprindashvili, Nona"]
[Black "Makropoulou, Marina"]
[Result "0-1"]
[ECO "E10"]
[WhiteElo "2267"]
[BlackElo "2081"]
[Annotator "RC"]
[PlyCount "132"]
[EventDate "2023.10.22"]
[EventType "swiss"]
[EventCountry "ITA"]
[SourceTitle "playchess.com"]
[Source "ChessBase"]
[SourceQuality "1"]
[TimeControl "40/5400+30:1800+30"]

1. d4 {[%emt 0:00:08]} Nf6 {[%emt 0:00:10]} 2. c4 {[%emt 0:00:07]} e6 {[%emt 0:00:14]} 3. Nf3 {[%emt 0:00:08]} a6 {[%emt 0:00:15]} 4. Bg5 {[%emt 0:06:04]} h6 {[%emt 0:07:37]} 5. Bh4 {[%emt 0:02:27]} g5 {[%emt 0:08:44]} 6. Bg3 {[%emt 0:00:03]} Ne4 {[%emt 0:00:36]} 7. Nfd2 {[%emt 0:02:28]} Nxg3 {[%emt 0:01:00]} 8. hxg3 {[%emt 0:00:03]} Bg7 {[%emt 0:00:20]} 9. Nb3 {[%emt 0:03:37]} d6 {[%emt 0:09:05]} 10. e3 {[%emt 0:00:36]} Nc6 {[%emt 0:04:49]} 11. Nc3 {[%emt 0:02:30]} Bd7 {[%emt 0:01:43]} 12. Qd2 {[%emt 0:06:24]} a5 {[%emt 0:03:49]} 13. Nc1 {[%emt 0:21:22]} a4 {[%emt 0:00:38]} 14. Rb1 {[%emt 0:00:07]} Nb4 {[%emt 0:04:29]} 15. Nd3 {[%emt 0:01:49]} Nc6 {[%emt 0:04:35]} 16. Be2 {[%emt 0:00:41]} e5 {[%emt 0:03:51]} 17. d5 {[%emt 0:00:25]} Na5 {[%emt 0:00:27]} 18. Nc1 {[%emt 0:00:12]} b6 {[%emt 0:00:50]} 19. g4 {[%emt 0:03:18]} h5 {[%emt 0:02:32]} 20. gxh5 {[%emt 0:02:39]} g4 {[%emt 0:00:11]} 21. g3 {[%emt 0:03:23]} f5 {[%emt 0:00:39]} 22. b4 {[%emt 0:00:19]} axb3 {[%emt 0:00:23]} 23. axb3 {[%emt 0:00:02]} Qg5 {[%emt 0:04:12]} 24. e4 {[%emt 0:13:20]} f4 {[%emt 0:00:46]} 25. Nd3 {[%emt 0:00:35]} Rxh5 {[%emt 0:03:20]} 26. Rxh5 {[%emt 0:00:25]} Qxh5 {[%emt 0:00:04]} 27. gxf4 {[%emt 0:02:55]} Qh1+ {[%emt 0:00:18]} 28. Bf1 {[%emt 0:00:02]} exf4 {[%emt 0:00:23]} 29. Nxf4 {[%emt 0:02:13]} Bxc3 {[%emt 0:15:55]} 30. Qxc3 {[%emt 0:00:04]} Qxe4+ {[%emt 0:00:04]} 31. Qe3 {[%emt 0:00:18]} Qxe3+ {[%emt 0:00:34]} 32. fxe3 {[%emt 0:00:02]} Nb7 {[%emt 0:00:13]} 33. Bd3 {[%emt 0:02:45]} Ra2 {[%emt 0:04:07]} 34. b4 {[%emt 0:10:21]} Ke7 {[%emt 0:02:11]} 35. Ne2 {[%emt 0:01:05]} Nd8 {[%emt 0:02:15]} 36. Kf2 {[%emt 0:09:12]} Nf7 {[%emt 0:00:34]} 37. Kg3 {[%emt 0:02:47]} Ne5 {[%emt 0:01:09]} 38. Nc1 {[%emt 0:00:20]} Ra3 {[%emt 0:02:06]} 39. Be2 {[%emt 0:02:07]} Rxe3+ {[%emt 0:00:08]} 40. Kf4 {[%emt 0:00:09]} Rc3 {[%emt 0:01:47]} 41. Nb3 {[%emt 0:31:15]} Nxc4 {[%emt 0:32:13]} 42. Nd4 {[%emt 0:00:03]} Ne3 {[%emt 0:03:35]} 43. Ke4 {[%emt 0:02:13]} Be8 {[%emt 0:04:36]} 44. Nc6+ {[%emt 0:00:00]} Bxc6 {[%emt 0:00:00]} 45. dxc6 {[%emt 0:00:00]} Nc2 {[%emt 0:00:00]} 46. Kf4 {[%emt 0:00:00]} Nd4 {[%emt 0:00:00]} 47. Bxg4 {[%emt 0:00:00]} Nxc6 {[%emt 0:00:00]} 48. b5 {[%emt 0:01:22]} Rc4+ {[%emt 0:00:00]} 49. Kf5 {[%emt 0:01:07]} Rc5+ {[%emt 0:00:00]} 50. Ke4 {[%emt 0:00:41]} d5+ {[%emt 0:00:00]} 51. Ke3 {[%emt 0:00:19]} Ne5 {[%emt 0:00:00]} 52. Be2 {[%emt 0:00:10]} Nc4+ {[%emt 0:00:00]} 53. Kd4 {[%emt 0:00:44]} Nd6 {[%emt 0:01:03]} 54. Bd3 {[%emt 0:00:11]} Kf6 {[%emt 0:02:14]} 55. Rf1+ {[%emt 0:00:12]} Kg5 {[%emt 0:00:16]} 56. Rg1+ {[%emt 0:00:10]} Kf4 {[%emt 0:00:14]} 57. Rf1+ {[%emt 0:00:09]} Kg3 {[%emt 0:00:09]} 58. Rb1 {[%emt 0:00:45]} Kg2 {[%emt 0:01:12]} 59. Rb2+ {[%emt 0:00:24]} Kf3 {[%emt 0:00:58]} 60. Rb1 {[%emt 0:00:58]} Ne4 {[%emt 0:00:37]} 61. Re1 {[%emt 0:01:10]} Nf2 {[%emt 0:03:03]} 62. Be2+ {[%emt 0:00:49]} Kg2 {[%emt 0:00:38]} 63. Bf1+ {[%emt 0:00:24]} Kg3 {[%emt 0:00:44]} 64. Re7 {[%emt 0:00:36]} Ne4 {[%emt 0:00:35]} 65. Bd3 {[%emt 0:00:12]} Nd6 {[%emt 0:00:33]} 66. Re5 {[%emt 0:01:25]} Nxb5+ {[%emt 0:03:28]} 0-1

[Event "FIDE World Senior-Women CC 2023"]
[Site "Terrasini"]
[Date "2023.11.01"]
[Round "7.1"]
[White "Makropoulou, Marina"]
[Black "Strutinskaia, Galina"]
[Result "1/2-1/2"]
[ECO "B31"]
[WhiteElo "2081"]
[BlackElo "2114"]
[Annotator "NA"]
[PlyCount "21"]
[EventDate "2023.10.22"]
[EventType "swiss"]
[EventCountry "ITA"]
[SourceTitle "playchess.com"]
[Source "ChessBase"]
[SourceQuality "1"]
[TimeControl "40/5400+30:1800+30"]

1. e4 {[%emt 0:00:05]} c5 {[%emt 0:00:11]} 2. Nf3 {[%emt 0:00:09]} Nc6 {[%emt 0:00:10]} 3. Bb5 {[%emt 0:00:10]} g6 {[%emt 0:00:09]} 4. O-O {[%emt 0:00:46]} Bg7 {[%emt 0:00:11]} 5. Bxc6 {[%emt 0:00:11]} bxc6 {[%emt 0:03:47]} 6. Re1 {[%emt 0:00:31]} Nh6 {[%emt 0:01:19]} 7. d4 {[%emt 0:01:20]} cxd4 {[%emt 0:01:07]} 8. Bxh6 {[%emt 0:00:19]} Bxh6 {[%emt 0:00:15]} 9. Qxd4 {[%emt 0:00:05]} O-O {[%emt 0:00:45]} 10. c4 {[%emt 0:07:31]} Rb8 {[%emt 0:04:18]} 11. Nbd2 {[%emt 0:03:02]} 1/2-1/2

[Event "FIDE World Senior-Women CC 2023"]
[Site "Terrasini"]
[Date "2023.11.01"]
[Round "7.2"]
[White "Tereladze, Sopio"]
[Black "Klinova, Masha"]
[Result "1/2-1/2"]
[ECO "B06"]
[WhiteElo "2215"]
[BlackElo "2249"]
[Annotator "ChessBase"]
[PlyCount "110"]
[EventDate "2023.10.22"]
[EventType "swiss"]
[EventCountry "ITA"]
[SourceTitle "playchess.com"]
[Source "ChessBase"]
[SourceQuality "1"]
[TimeControl "40/5400+30:1800+30"]

1. e4 {[%emt 0:00:02]} d6 {[%emt 0:01:05]} 2. d4 {[%emt 0:00:16]} g6 {[%emt 0:00:14]} 3. Nc3 {[%emt 0:01:07]} Bg7 {[%emt 0:00:07]} 4. Be3 {[%emt 0:00:42]} a6 {[%emt 0:00:10]} 5. g4 {[%emt 0:01:11]} b5 {[%emt 0:05:37]} 6. Bg2 {[%emt 0:00:48]} Bb7 {[%emt 0:00:09]} 7. h4 {[%emt 0:00:23]} h6 {[%emt 0:03:16]} 8. f4 {[%emt 0:09:22]} Nd7 {[%emt 0:07:30]} 9. h5 {[%emt 0:07:56]} gxh5 {[%emt 0:07:15]} 10. gxh5 {[%emt 0:02:53]} Ngf6 {[%emt 0:01:25]} 11. a3 {[%emt 0:07:02]} c5 {[%emt 0:07:10]} 12. d5 {[%emt 0:15:29]} Rg8 {[%emt 0:08:14]} 13. Qe2 {[%emt 0:05:14]} Qc7 {[%emt 0:09:02]} 14. Nh3 {[%emt 0:09:08]} Nb6 {[%emt 0:07:14]} 15. O-O {[%emt 0:01:34]} O-O-O {[%emt 0:02:46]} 16. a4 {[%emt 0:04:21]} b4 {[%emt 0:02:15]} 17. a5 {[%emt 0:00:31]} Nbd7 {[%emt 0:03:10]} 18. Na4 {[%emt 0:01:20]} Bh8 {[%emt 0:02:07]} 19. Kh1 {[%emt 0:06:49]} Ng4 {[%emt 0:03:41]} 20. Bd2 {[%emt 0:04:08]} Kb8 {[%emt 0:09:39]} 21. c3 {[%emt 0:00:20]} b3 {[%emt 0:02:23]} 22. Bf3 {[%emt 0:01:52]} Ngf6 {[%emt 0:01:17]} 23. c4 {[%emt 0:01:07]} Rg3 {[%emt 0:01:01]} 24. Kh2 {[%emt 0:04:00]} Rdg8 {[%emt 0:02:15]} 25. Rg1 {[%emt 0:00:27]} Rxg1 {[%emt 0:03:01]} 26. Rxg1 {[%emt 0:00:04]} Qc8 {[%emt 0:00:24]} 27. Rxg8 {[%emt 0:01:19]} Qxg8 {[%emt 0:01:10]} 28. Qg2 {[%emt 0:00:06]} Qxg2+ {[%emt 0:04:21]} 29. Kxg2 {[%emt 0:00:17]} Ne8 {[%emt 0:00:07]} 30. Bd1 {[%emt 0:01:21]} Bd4 {[%emt 0:00:57]} 31. Nf2 {[%emt 0:01:44]} Ng7 {[%emt 0:06:58]} 32. Ng4 {[%emt 0:05:00]} f5 {[%emt 0:00:00]} 33. exf5 {[%emt 0:01:04]} Nxf5 {[%emt 0:00:00]} 34. Bxb3 {[%emt 0:00:16]} Nf6 {[%emt 0:00:00]} 35. Nxf6 {[%emt 0:00:22]} exf6 {[%emt 0:00:00]} 36. Bc3 {[%emt 0:05:57]} Ne3+ {[%emt 0:00:16]} 37. Kf3 {[%emt 0:00:56]} Bc8 {[%emt 0:00:16]} 38. Bxd4 {[%emt 0:00:59]} cxd4 {[%emt 0:00:03]} 39. Ke4 {[%emt 0:00:19]} Bg4 {[%emt 0:00:17]} 40. Kxd4 {[%emt 0:00:26]} Nf5+ {[%emt 0:00:07]} 41. Kc3 {[%emt 0:30:44]} Bxh5 {[%emt 0:30:37]} 42. c5 {[%emt 0:00:31]} Bf3 {[%emt 0:00:47]} 43. cxd6 {[%emt 0:00:00]} Nxd6 {[%emt 0:00:00]} 44. Kd2 {[%emt 0:00:00]} Nb7 {[%emt 0:00:00]} 45. Ke3 {[%emt 0:00:00]} Bg2 {[%emt 0:00:00]} 46. Ba2 {[%emt 0:00:00]} Nxa5 {[%emt 0:00:00]} 47. Nc5 {[%emt 0:00:00]} Kc7 {[%emt 0:00:00]} 48. Nxa6+ {[%emt 0:00:00]} Kd6 {[%emt 0:00:00]} 49. Nb4 {[%emt 0:00:00]} h5 {[%emt 0:00:00]} 50. Kf2 {[%emt 0:00:00]} Be4 {[%emt 0:00:00]} 51. Kg3 {[%emt 0:00:00]} Nb7 {[%emt 0:00:02]} 52. Kh4 {[%emt 0:00:00]} Kc5 {[%emt 0:02:39]} 53. Nc6 {[%emt 0:00:00]} Bxd5 {[%emt 0:00:54]} 54. Bxd5 {[%emt 0:00:00]} Kxd5 {[%emt 0:00:03]} 55. Ne7+ {[%emt 0:00:00]} Ke4 {[%emt 0:01:07]} 1/2-1/2

[Event "FIDE World Senior-Women CC 2023"]
[Site "Terrasini"]
[Date "2023.11.01"]
[Round "7.3"]
[White "Calzetta Ruiz, Monica"]
[Black "Mikhaylova, Irina"]
[Result "1-0"]
[ECO "B30"]
[WhiteElo "2239"]
[BlackElo "2216"]
[Annotator "ChessBase"]
[PlyCount "157"]
[EventDate "2023.10.22"]
[EventType "swiss"]
[EventCountry "ITA"]
[SourceTitle "playchess.com"]
[Source "ChessBase"]
[SourceQuality "1"]
[TimeControl "40/5400+30:1800+30"]

1. e4 {[%emt 0:00:04]} c5 {[%emt 0:00:04]} 2. Nf3 {[%emt 0:00:07]} Nc6 {[%emt 0:00:12]} 3. Nc3 {[%emt 0:00:06]} e5 {[%emt 0:00:34]} 4. Bc4 {[%emt 0:00:06]} Be7 {[%emt 0:00:10]} 5. d3 {[%emt 0:00:19]} Nf6 {[%emt 0:01:39]} 6. Ng5 {[%emt 0:00:53]} O-O {[%emt 0:00:07]} 7. h4 {[%emt 0:00:06]} d6 {[%emt 0:02:33]} 8. Nd5 {[%emt 0:00:50]} Ng4 {[%emt 0:23:33]} 9. f3 {[%emt 0:16:19]} Nh6 {[%emt 0:05:47]} 10. Be3 {[%emt 0:04:43]} Kh8 {[%emt 0:13:56]} 11. g4 {[%emt 0:09:02]} Nd4 {[%emt 0:08:26]} 12. c3 {[%emt 0:03:04]} Ne6 {[%emt 0:00:35]} 13. Qd2 {[%emt 0:01:21]} Ng8 {[%emt 0:04:03]} 14. O-O-O {[%emt 0:01:48]} f6 {[%emt 0:12:33]} 15. Nh3 {[%emt 0:16:26]} Nc7 {[%emt 0:02:21]} 16. Rdg1 {[%emt 0:02:26]} Rb8 {[%emt 0:04:41]} 17. f4 {[%emt 0:04:02]} b5 {[%emt 0:01:50]} 18. Bb3 {[%emt 0:00:21]} Be6 {[%emt 0:00:51]} 19. f5 {[%emt 0:01:56]} Bxd5 {[%emt 0:01:57]} 20. exd5 {[%emt 0:00:07]} a5 {[%emt 0:04:24]} 21. Qg2 {[%emt 0:05:25]} Qe8 {[%emt 0:04:58]} 22. g5 {[%emt 0:01:21]} fxg5 {[%emt 0:00:40]} 23. hxg5 {[%emt 0:00:09]} Rxf5 {[%emt 0:00:28]} 24. Bc2 {[%emt 0:04:14]} g6 {[%emt 0:02:31]} 25. d4 {[%emt 0:02:13]} cxd4 {[%emt 0:00:53]} 26. Bxf5 {[%emt 0:00:51]} dxe3 {[%emt 0:00:47]} 27. Be4 {[%emt 0:01:05]} Qf7 {[%emt 0:00:40]} 28. Re1 {[%emt 0:00:32]} b4 {[%emt 0:00:11]} 29. c4 {[%emt 0:01:14]} Na6 {[%emt 0:00:14]} 30. Rxe3 {[%emt 0:01:45]} Nc5 {[%emt 0:00:14]} 31. Rf3 {[%emt 0:02:21]} Qg7 {[%emt 0:01:45]} 32. Nf2 {[%emt 0:00:18]} Rf8 {[%emt 0:00:15]} 33. Rxf8 {[%emt 0:05:33]} Bxf8 {[%emt 0:00:08]} 34. Rh3 {[%emt 0:04:42]} Be7 {[%emt 0:00:29]} 35. Kb1 {[%emt 0:00:11]} Bd8 {[%emt 0:00:21]} 36. Bc2 {[%emt 0:00:45]} Ne7 {[%emt 0:00:21]} 37. Qg4 {[%emt 0:02:06]} Ng8 {[%emt 0:00:35]} 38. Ne4 {[%emt 0:00:31]} Nxe4 {[%emt 0:00:18]} 39. Bxe4 {[%emt 0:00:15]} Qf7 {[%emt 0:02:15]} 40. Rf3 {[%emt 0:00:44]} Qe7 {[%emt 0:00:13]} 41. Rg3 {[%emt 0:34:22]} Qf7 {[%emt 0:05:24]} 42. Rf3 {[%emt 0:00:00]} Qe7 {[%emt 0:00:22]} 43. Rh3 {[%emt 0:00:00]} Qxg5 {[%emt 0:00:56]} 44. Bxg6 {[%emt 0:00:00]} h6 {[%emt 0:01:02]} 45. Qxg5 {[%emt 0:00:00]} Bxg5 {[%emt 0:00:07]} 46. a3 {[%emt 0:00:00]} Kg7 {[%emt 0:02:37]} 47. Bc2 {[%emt 0:00:00]} Nf6 {[%emt 0:12:07]} 48. axb4 {[%emt 0:00:00]} axb4 {[%emt 0:00:06]} 49. Rb3 {[%emt 0:00:00]} Bd2 {[%emt 0:00:37]} 50. Rg3+ {[%emt 0:00:00]} Bg5 {[%emt 0:08:00]} 51. Ka2 {[%emt 0:00:00]} e4 {[%emt 0:00:09]} 52. Kb3 {[%emt 0:00:00]} e3 {[%emt 0:00:02]} 53. Rg2 {[%emt 0:00:00]} Nh5 {[%emt 0:00:29]} 54. Bd1 {[%emt 0:02:00]} Nf4 {[%emt 0:00:14]} 55. Rh2 {[%emt 0:00:02]} Bf6 {[%emt 0:04:29]} 56. Kxb4 {[%emt 0:00:36]} e2 {[%emt 0:00:14]} 57. Bxe2 {[%emt 0:00:09]} Bxb2 {[%emt 0:00:02]} 58. Bf3 {[%emt 0:01:29]} Bd4 {[%emt 0:00:38]} 59. Kb5 {[%emt 0:00:22]} Bc5 {[%emt 0:00:08]} 60. Be4 {[%emt 0:01:11]} Ba3 {[%emt 0:02:25]} 61. Kc6 {[%emt 0:00:47]} Bc5 {[%emt 0:00:28]} 62. Bb1 {[%emt 0:01:23]} Bb4 {[%emt 0:00:27]} 63. Kd7 {[%emt 0:01:24]} Bc5 {[%emt 0:01:27]} 64. Rh4 {[%emt 0:00:35]} Ne2 {[%emt 0:00:16]} 65. Rg4+ {[%emt 0:01:31]} Kf7 {[%emt 0:00:30]} 66. Bg6+ {[%emt 0:01:03]} Kf6 {[%emt 0:00:27]} 67. Bd3 {[%emt 0:00:04]} Nc1 {[%emt 0:00:35]} 68. Bc2 {[%emt 0:00:54]} Ke5 {[%emt 0:00:21]} 69. Re4+ {[%emt 0:00:28]} Kf6 {[%emt 0:00:09]} 70. Re6+ {[%emt 0:01:11]} Kg5 {[%emt 0:00:06]} 71. Rg6+ {[%emt 0:00:45]} Kf4 {[%emt 0:00:17]} 72. Rxh6 {[%emt 0:00:11]} Ke5 {[%emt 0:00:02]} 73. Rh4 {[%emt 0:01:05]} Na2 {[%emt 0:01:21]} 74. Re4+ {[%emt 0:01:23]} Kf5 {[%emt 0:00:10]} 75. Re6+ {[%emt 0:00:39]} Kg5 {[%emt 0:00:38]} 76. Rxd6 {[%emt 0:00:14]} Bxd6 {[%emt 0:00:06]} 77. Kxd6 {[%emt 0:00:09]} Nb4 {[%emt 0:00:12]} 78. Bb3 {[%emt 0:00:52]} Kf6 {[%emt 0:00:17]} 79. c5 {[%emt 0:00:10]} 1-0